bitfinex-derivatives/quotes_ETHF0:USTF0_20250502
["timestamp","ask_amount","ask_price","bid_price","bid_amount"]
[1746149483319,0.42449299,1844.3,1844.2,6.2916]
[1746149483518,0.42449299,1844.3,1844.2,7.3758]
[1746149484811,1.08413,1844.4,1844.2,7.3758]
[1746149485011,6.0352,1844.7,1844.5,1.08401]
[1746149485211,3.502,1844.7,1844.3,4.2919]
[1746149485416,1.08408,1844.5,1844.3,4.2919]
[1746149485814,1.08409,1844.4,1844.3,4.2919]
[1746149486114,1.08409,1844.4,1844.3,7.9879]
[1746149486311,1.50916437,1844.4,1844.3,7.9879]
[1746149487416,0.42507437,1844.4,1844.3,7.9879]
[1746149487818,0.42507437,1844.4,1844.3,6.9038]
[1746149487819,1.50916437,1844.4,1844.3,6.9038]
[1746149488119,1.50916437,1844.4,1844.3,7.98795]
[1746149489012,1.50916437,1844.4,1844.3,6.9038]
[1746149489412,3.08996437,1844.4,1844.3,6.9038]
[1746149490319,3.08996437,1844.4,1844.3,7.98795]
[1746149490520,3.08996437,1844.4,1844.3,4.78015]
[1746149490818,3.08996437,1844.4,1844.3,3.696]
[1746149492122,8.08996437,1844.4,1844.3,3.696]
[1746149492418,11.59196437,1844.4,1844.3,2.57239]
[1746149492616,14.79976437,1844.4,1844.3,1.92883]
[1746149492817,1.08432,1844.0,1843.9,10.71791211]
[1746149493011,8.21919437,1844.0,1843.9,10.71791211]
[1746149493209,13.21919437,1844.0,1843.9,10.71791211]
[1746149493612,1.08444,1843.8,1843.7,10.71791211]
[1746149493912,1.50951437,1843.8,1843.7,10.71791211]
[1746149494418,2.36791437,1843.8,1843.7,14.41391211]
[1746149496723,5.57571437,1843.8,1843.7,14.41391211]
[1746149498925,10.57571437,1843.8,1843.7,3.696]
[1746149499221,1.08468,1843.4,1843.3,3.2078]
[1746149499417,3.503,1843.5,1843.3,3.2078]
[1746149499813,4.58764,1843.5,1843.3,3.2078]
[1746149500225,1.08468,1843.4,1843.3,6.9038]
[1746149500923,1.08468,1843.4,1843.3,8.6442]
[1746149501118,2.76728,1843.4,1843.3,8.6442]
[1746149501725,2.76728,1843.4,1843.3,6.9038]
[1746149502521,2.76728,1843.4,1843.3,3.696]
[1746149502720,3.19009345,1843.4,1843.3,3.696]
[1746149503225,6.39789345,1843.4,1843.3,3.696]
[1746149503818,12.23589345,1843.4,1843.3,3.696]
[1746149504226,1.08491,1843.0,1842.9,1.6748]
[1746149504620,3.512,1843.1,1842.9,5.96755]
[1746149504824,3.512,1843.1,1843.0,1.08491]
[1746149505024,3.512,1843.1,1843.0,1.6748]
[1746149505331,3.512,1843.1,1843.0,5.3708]
[1746149505727,3.512,1843.1,1843.0,6.45571]
[1746149506116,4.59685,1843.1,1843.0,5.3708]
[1746149506926,4.59685,1843.1,1843.0,3.696]
[1746149507221,4.59685,1843.1,1843.0,6.2242]
[1746149508430,3.512,1843.1,1843.0,6.2242]
[1746149508631,4.59685,1843.1,1843.0,6.2242]
[1746149509330,6.31635,1843.1,1843.0,3.696]
[1746149510825,6.73831692,1843.1,1843.0,3.696]
[1746149511433,3.22631692,1843.1,1843.0,3.696]
[1746149511623,6.73931692,1843.1,1843.0,3.696]
[1746149512129,0.42196692,1843.1,1843.0,3.696]
[1746149512335,3.513,1843.1,1843.0,4.78091]
[1746149512529,4.59785,1843.1,1843.0,3.696]
[1746149512927,3.513,1843.1,1843.0,3.696]
[1746149513128,3.513,1843.1,1843.0,5.2809]
[1746149513528,4.59785,1843.1,1843.0,5.2809]
[1746149514436,4.59785,1843.1,1843.0,3.696]
[1746149514638,6.31045,1843.1,1843.0,3.696]
[1746149515638,6.73258281,1843.1,1843.0,3.696]
[1746149516029,6.31045,1843.1,1843.0,5.4222]
[1746149517040,6.31045,1843.1,1843.0,3.696]
[1746149517436,6.73284397,1843.1,1843.0,3.696]
[1746149522937,6.73284397,1843.1,1843.0,5.3791]
[1746149523443,6.73284397,1843.1,1843.0,3.696]
[1746149533847,1.50724397,1843.1,1843.0,3.696]
[1746149534049,1.50724397,1843.1,1843.0,6.1151]
[1746149538858,1.50724397,1843.1,1843.0,7.20001]
[1746149539458,1.50724397,1843.1,1843.0,6.1151]
[1746149540257,1.50724397,1843.1,1843.0,7.20001]
[1746149541850,0.42239397,1843.1,1843.0,7.20001]
[1746149542547,1.08473,1843.4,1843.0,12.0471]
[1746149542751,1.08458,1843.6,1843.5,1.08461]
[1746149542959,1.50920036,1843.6,1843.5,1.08461]
[1746149543162,1.50920036,1843.6,1843.5,3.696]
[1746149543560,1.50920036,1843.6,1843.5,5.3708]
[1746149544866,1.50920036,1843.6,1843.5,9.66322]
[1746149545054,1.50920036,1843.6,1843.5,8.5786]
[1746149545563,1.50920036,1843.6,1843.5,9.66322]
[1746149546558,1.08445,1843.8,1843.5,13.5786]
[1746149546757,1.08445,1843.8,1843.7,3.2078]
[1746149546965,1.50835844,1843.8,1843.7,3.2078]
[1746149547258,1.50835844,1843.8,1843.7,10.1774]
[1746149547760,1.08445,1843.8,1843.7,10.1774]
[1746149548461,1.50799817,1843.8,1843.7,10.1774]
[1746149549364,1.50799817,1843.8,1843.7,11.2619]
[1746149549662,1.50799817,1843.8,1843.7,10.1774]
[1746149549663,1.08445,1843.8,1843.7,10.1774]
[1746149550861,2.79355,1843.8,1843.7,10.1774]
[1746149552054,1.08445,1843.8,1843.7,10.1774]
[1746149552258,4.58942,1843.9,1843.7,11.2619]
[1746149552459,4.58942,1843.9,1843.8,1.7399]
[1746149552664,5.01266041,1843.9,1843.8,1.7399]
[1746149552865,6.62216041,1843.9,1843.8,1.7399]
[1746149553164,0.42324041,1843.9,1843.8,6.52034]
[1746149553363,1.08432,1844.0,1843.9,1.08435]
[1746149553662,1.08432,1844.0,1843.9,4.892]
[1746149554064,1.08432,1844.0,1843.9,8.588]
[1746149554468,1.08432,1844.0,1843.9,9.67238]
[1746149554867,1.08428,1844.1,1844.0,1.08432]
[1746149555066,1.08428,1844.1,1844.0,2.5128]
[1746149555767,1.6431,1844.3,1844.0,3.59711]
[1746149556060,1.0842,1844.2,1844.1,4.9113]
[1746149561665,1.08426,1844.1,1844.0,3.696]
[1746149561868,4.82565592,1844.1,1844.0,3.696]
[1746149562068,4.82565592,1844.1,1844.0,2.54103]
[1746149562768,8.03345592,1844.1,1844.0,2.54103]
[1746149564160,4.82565592,1844.1,1844.0,2.54103]
[1746149564669,8.03345592,1844.1,1844.0,2.54103]
[1746149564870,13.03345592,1844.1,1844.0,1.15538]
[1746149565171,1.0845,1843.7,1843.6,7.18271479]
[1746149565470,1.50719592,1843.7,1843.6,7.18271479]
[1746149565866,1.50719592,1843.7,1843.5,1.5923]
[1746149565867,1.08456,1843.6,1843.5,1.5923]
[1746149566067,2.76426,1843.6,1843.5,1.5923]
[1746149566271,2.76426,1843.6,1843.5,5.2883]
[1746149566570,2.76426,1843.6,1843.5,3.696]
[1746149566973,3.18759352,1843.6,1843.5,3.696]
[1746149571474,3.18759352,1843.6,1843.5,4.5586]
[1746149574976,1.08456,1843.6,1843.5,6.136]
[1746149575477,1.50830606,1843.6,1843.5,6.136]
[1746149575878,1.50830606,1843.6,1843.5,3.696]
[1746149578681,1.50830606,1843.6,1843.5,5.4303]
[1746149580480,0.42374606,1843.6,1843.5,6.51492]
[1746149580975,1.50830606,1843.6,1843.5,5.4303]
[1746149581374,1.08456,1843.6,1843.5,5.4303]
[1746149582282,1.5954,1843.7,1843.5,8.6381]
[1746149582576,1.0845,1843.7,1843.6,2.5089]
[1746149582782,2.75307,1843.8,1843.6,2.5089]
[1746149582977,1.88767,1843.8,1843.7,0.8207]
[1746149583178,1.88767,1843.8,1843.7,5.6871]
[1746149583383,0.42344257,1843.8,1843.7,6.7716]
[1746149583577,1.50788257,1843.8,1843.7,6.7716]
[1746149583882,1.08444,1843.8,1843.7,2.4793]
[1746149584276,1.08444,1843.8,1843.7,7.2598]
[1746149584678,1.08444,1843.8,1843.7,6.1753]
[1746149584981,5.1701,1844.0,1843.8,1.08443]
[1746149585170,6.25442,1844.0,1843.9,1.6605]
[1746149585375,4.58832,1844.0,1843.9,2.4637]
[1746149585575,3.504,1844.0,1843.9,6.75588]
[1746149585781,0.42355586,1844.0,1843.9,6.75588]
[1746149586182,0.42355586,1844.0,1843.9,10.45188]
[1746149586380,1.08424,1844.2,1844.0,1.08428]
[1746149586579,1.08424,1844.2,1844.1,1.7341]
[1746149586770,1.50787609,1844.2,1844.1,2.81836]
[1746149587276,1.08417,1844.3,1844.1,4.9419]
[1746149587482,1.08417,1844.3,1844.2,1.7341]
[1746149587883,1.08411,1844.4,1844.2,2.81826]
[1746149588185,1.08411,1844.4,1844.3,3.4401]
[1746149588387,1.50765916,1844.4,1844.3,3.4401]
[1746149589085,1.50765916,1844.4,1844.3,7.1361]
[1746149593790,1.50765916,1844.4,1844.3,10.3439]
[1746149593999,1.08411,1844.4,1844.3,7.1361]
[1746149597190,1.08411,1844.4,1844.3,10.3439]
[1746149600281,1.08411,1844.4,1844.3,11.42805]
[1746149601082,3.504,1844.6,1844.3,11.42805]
[1746149601295,1.08403,1844.5,1844.4,1.6387]
[1746149602095,1.08403,1844.5,1844.4,5.3347]
[1746149605599,1.95343,1844.5,1844.4,3.696]
[1746149605898,2.37663895,1844.5,1844.4,3.696]
[1746149606396,4.12653895,1844.5,1844.4,3.696]
[1746149611599,4.12653895,1844.5,1844.4,2.5805]
[1746149611799,12.62853895,1844.5,1844.4,1e-05]
[1746149612202,1.08438,1843.9,1843.8,8.3904]
[1746149612597,1.50758895,1843.9,1843.8,8.3904]
[1746149612798,1.50758895,1843.9,1843.8,14.72511479]
[1746149612992,1.50758895,1843.9,1843.8,13.11471479]
[1746149613197,1.50758895,1843.9,1843.8,10.87871479]
[1746149613403,3.12218895,1843.9,1843.8,10.87871479]
[1746149616706,3.12218895,1843.9,1843.8,3.696]
[1746149625918,1.08462,1843.5,1843.4,4.0142]
[1746149626109,1.08462,1843.5,1843.4,0.8064]
[1746149626410,1.08462,1843.5,1843.4,6.244]
[1746149629918,1.08459,1843.6,1843.4,10.53648]
[1746149630118,1.08459,1843.6,1843.5,1.748]
[1746149631314,1.08459,1843.6,1843.5,5.444]
[1746149632014,1.08456,1843.6,1843.5,5.444]
[1746149632916,1.5075687,1843.6,1843.5,5.444]
[1746149635322,1.50786066,1843.6,1843.5,5.444]
[1746149637314,0.42330066,1843.6,1843.5,5.444]
[1746149637519,1.50786066,1843.6,1843.5,5.444]
[1746149638825,0.42330066,1843.6,1843.5,6.52862]
[1746149639625,1.50786066,1843.6,1843.5,5.444]
[1746149640520,4.83276066,1843.6,1843.5,3.696]
[1746149642122,4.83276066,1843.6,1843.5,5.3626]
[1746149642322,1.50786066,1843.6,1843.5,5.3626]
[1746149643820,3.20326066,1843.6,1843.5,5.3626]
[1746149644026,11.25959,1844.1,1843.5,5.3626]
[1746149644027,5.838,1844.1,1843.5,11.9038]
[1746149644221,1.08442,1843.9,1843.5,14.4475]
[1746149644422,1.08442,1843.9,1843.6,2.4473]
[1746149644724,1.08444,1843.8,1843.7,42.4117]
[1746149644924,1.08456,1843.6,1843.5,9.628]
[1746149645123,1.08456,1843.6,1843.5,1.6117]
[1746149645628,1.08462,1843.5,1843.4,1.6636]
[1746149645827,1.08462,1843.5,1843.4,3.2753]
[1746149646019,1.08462,1843.5,1843.4,44.0753]
[1746149646220,1.08462,1843.5,1843.4,47.7713]
[1746149646422,2.69972,1843.5,1843.4,47.7713]
[1746149648328,2.69972,1843.5,1843.4,46.9141]
[1746149648515,3.52322,1843.5,1843.4,46.9141]
[1746149649727,3.52322,1843.5,1843.4,6.1141]
[1746149651026,3.52322,1843.5,1843.4,6.935]
[1746149652726,3.52322,1843.5,1843.4,47.735]
[1746149656131,3.94970884,1843.5,1843.4,47.735]
[1746149661037,3.94970884,1843.5,1843.4,45.3169]
[1746149661236,3.94970884,1843.5,1843.4,44.496]
[1746149663338,3.94970884,1843.5,1843.4,46.2398]
[1746149664544,3.94970884,1843.5,1843.4,47.0818]
[1746149664746,1.51110884,1843.5,1843.4,47.0818]
[1746149666841,3.14250884,1843.5,1843.4,3.696]
[1746149669842,3.14250884,1843.5,1843.4,5.4154]
[1746149671041,3.14250884,1843.5,1843.4,6.2825]
[1746149686954,1.51110884,1843.5,1843.4,6.2825]
[1746149689361,1.51110884,1843.5,1843.4,9.4903]
[1746149690866,1.51110884,1843.5,1843.4,16.67301479]
[1746149692870,1.51110884,1843.5,1843.4,13.46521479]
[1746149695373,1.51110884,1843.5,1843.4,12.59811479]
[1746149695571,3.14590884,1843.5,1843.4,12.59811479]
[1746149696072,3.14590884,1843.5,1843.4,10.87871479]
[1746149697274,3.14590884,1843.5,1843.4,12.58701479]
[1746149702080,3.14590884,1843.5,1843.4,9.79261479]
[1746149704480,8.14590884,1843.5,1843.4,6.33969412]
[1746149704775,8.14590884,1843.5,1843.4,1.76484412]
[1746149704978,8.14590884,1843.5,1843.4,4.12e-06]
[1746149705985,8.14590884,1843.5,1843.3,9.52240623]
[1746149705986,1.08468,1843.4,1843.3,9.52240623]
[1746149706186,1.08473,1843.3,1843.2,14.15880265]
[1746149706377,4.58573,1843.3,1843.2,10.56330265]
[1746149706579,1.08485,1843.1,1843.0,10.88387368]
[1746149706785,4.71913884,1843.1,1843.0,10.88387368]
[1746149707383,6.43123884,1843.1,1843.0,10.88387368]
[1746149709083,6.43123884,1843.1,1843.0,14.57987368]
[1746149710783,6.43123884,1843.1,1843.0,3.696]
[1746149710982,8.01103884,1843.1,1843.0,3.696]
[1746149711179,4.80323884,1843.1,1843.0,3.696]
[1746149711380,5.01333884,1843.1,1843.0,3.696]
[1746149711786,5.01333884,1843.1,1843.0,4.4975]
[1746149713386,5.01333884,1843.1,1843.0,6.1372]
[1746149713694,0.42648884,1843.1,1843.0,7.22211]
[1746149713986,0.42648884,1843.1,1843.0,15.42991]
[1746149714384,3.60113497,1843.2,1843.1,1.08485]
[1746149714585,3.60113497,1843.2,1843.1,3.64395]
[1746149714787,3.60113497,1843.2,1843.1,8.64395]
[1746149715287,1.08468,1843.4,1843.3,1.08473]
[1746149715480,1.08465,1843.5,1843.3,1.08473]
[1746149715680,1.08465,1843.5,1843.4,2.543]
[1746149716289,1.50915382,1843.5,1843.4,6.239]
[1746149718387,1.50915382,1843.5,1843.4,47.039]
[1746149719389,0.42450382,1843.5,1843.4,48.12368]
[1746149720578,0.42450382,1843.5,1843.4,51.33148]
[1746149721489,0.42450382,1843.5,1843.4,56.33148]
[1746149721978,8.18449497,1844.0,1843.8,1.0844]
[1746149722186,3.60113497,1844.1,1844.0,1.08432]
[1746149722584,5.11009472,1844.1,1844.0,1.6169]
[1746149723088,5.11009472,1844.1,1844.0,6.39722]
[1746149723291,4.02583472,1844.1,1844.0,6.39722]
[1746149723492,3.60113497,1844.1,1844.0,6.39722]
[1746149723797,3.60113497,1844.1,1844.0,11.39722]
[1746149724389,3.60113497,1844.1,1844.0,17.32922]
[1746149724991,5.41611555,1844.2,1844.1,1.08426]
[1746149725292,5.41611555,1844.2,1844.1,5.99156]
[1746149725488,5.41611555,1844.2,1844.1,10.99156]
[1746149725694,5.41611555,1844.2,1844.1,57.72356]
[1746149726287,11.84837975,1844.7,1844.1,57.72356]
[1746149726288,1.08395,1844.7,1844.5,1.08403]
[1746149726494,1.08395,1844.7,1844.6,1.6995]
[1746149727191,1.08403,1844.5,1844.4,3.2078]
[1746149727596,1.08415,1844.3,1844.2,1.7087]
[1746149728195,1.08415,1844.3,1844.2,5.4047]
[1746149728392,1.08415,1844.3,1844.2,3.696]
[1746149729086,9.58215,1844.3,1844.2,0.09486503]
[1746149729282,11.17975,1844.3,1844.2,0.09486503]
[1746149729484,11.60240974,1844.3,1844.2,0.09486503]
[1746149730195,1.08433,1844.0,1843.8,2.77784]
[1746149730586,1.08433,1844.0,1843.8,1.6934]
[1746149730789,3.6055,1844.1,1843.8,2.77781]
[1746149731090,1.649,1844.0,1843.8,5.3894]
[1746149731696,2.73332,1844.0,1843.9,1.6934]
[1746149732397,1.649,1844.0,1843.9,1.6934]
[1746149732596,2.73332,1844.0,1843.9,1.6934]
[1746149733200,2.73332,1844.0,1843.9,5.3894]
[1746149733598,2.73332,1844.0,1843.9,3.696]
[1746149735101,2.73332,1844.0,1843.9,5.2765]
[1746149737799,2.73332,1844.0,1843.9,3.696]
[1746149738605,3.15658273,1844.0,1843.9,3.696]
[1746149739605,6.36438273,1844.0,1843.9,3.696]
[1746149740506,9.86238273,1844.0,1843.9,3.696]
[1746149741005,9.86283706,1844.0,1843.9,3.696]
[1746149744005,6.65503706,1844.0,1843.9,3.696]
[1746149745614,5.57071706,1844.0,1843.9,4.78038]
[1746149745908,5.57071706,1844.0,1843.9,3.696]
[1746149746508,5.57071706,1844.0,1843.9,4.78038]
[1746149746715,5.00603706,1844.0,1843.9,4.78038]
[1746149746914,5.00603706,1844.0,1843.9,4.5439]
[1746149747414,5.00603706,1844.0,1843.9,6.2124]
[1746149747711,1.50803706,1844.0,1843.9,6.2124]
[1746149747915,1.50803706,1844.0,1843.9,7.29678]
[1746149748118,0.42371706,1844.0,1843.9,15.50458]
[1746149748417,1.50803706,1844.0,1843.9,15.50458]
[1746149748716,1.08432,1844.0,1843.9,15.50458]
[1746149748913,1.08432,1844.0,1843.9,10.50458]
[1746149749615,1.08432,1844.0,1843.9,6.9038]
[1746149749816,1.50944312,1844.0,1843.9,6.9038]
[1746149750318,1.50944312,1844.0,1843.9,3.696]
[1746149750918,2.34634312,1844.0,1843.9,3.696]
[1746149751716,4.06614312,1844.0,1843.9,3.696]
[1746149753328,3.64102,1844.0,1843.9,3.696]
[1746149753520,4.06627977,1844.0,1843.9,3.696]
[1746149754519,7.56327977,1844.0,1843.9,3.696]
[1746149759326,8.37167977,1844.0,1843.9,3.696]
[1746149760129,8.37167977,1844.0,1843.9,5.2868]
[1746149763538,11.57947977,1844.0,1843.9,5.2868]
[1746149764247,8.21437977,1844.0,1843.9,5.2868]
[1746149764432,8.21437977,1844.0,1843.9,6.1256]
[1746149765337,1.50957977,1844.0,1843.9,6.1256]
[1746149769948,3.25367977,1844.0,1843.9,6.1256]
[1746149770551,1.50957977,1844.0,1843.9,6.1256]
[1746149772453,0.42525977,1844.0,1843.9,7.20998]
[1746149772652,0.42525977,1844.0,1843.9,15.41778]
[1746149772847,0.42525977,1844.0,1843.9,21.34978]
[1746149773153,5.41611555,1844.4,1844.3,1.08415]
[1746149773343,5.41611555,1844.4,1844.3,4.29195]
[1746149773545,5.41611555,1844.4,1844.3,9.29195]
[1746149773750,10.61984499,1844.6,1844.5,1.08403]
[1746149773751,7.12284499,1844.6,1844.5,1.08403]
[1746149774047,7.12284499,1844.6,1844.5,4.29183]
[1746149774254,7.12284499,1844.6,1844.5,48.78783]
[1746149774553,7.12284499,1844.6,1844.5,50.36753]
[1746149774554,0.39822031,1844.6,1844.5,50.36753]
[1746149774760,0.39822031,1844.6,1844.5,55.36753]
[1746149776656,0.39822031,1844.6,1844.5,61.29953]
[1746149777156,1.08376,1845.0,1844.7,1.08389]
[1746149777355,2.69316,1845.0,1844.8,5.7775]
[1746149777547,2.69316,1845.0,1844.9,1.7429]
[1746149778247,2.69316,1845.0,1844.9,5.4389]
[1746149778646,2.69316,1845.0,1844.9,3.696]
[1746149778846,5.90096,1845.0,1844.9,3.696]
[1746149779043,10.90096,1845.0,1844.9,3.696]
[1746149779255,1.08397,1844.6,1844.5,51.6484481]
[1746149779856,1.08397,1844.6,1844.5,53.3817481]
[1746149780064,1.08397,1844.6,1844.5,54.4657781]
[1746149780359,2.69645,1844.7,1844.5,61.3695781]
[1746149780552,2.69645,1844.7,1844.6,1.7333]
[1746149780754,1.08395,1844.7,1844.6,1.7333]
[1746149780954,1.0839,1844.8,1844.6,2.81727]
[1746149781154,1.0839,1844.8,1844.7,3.66541]
[1746149781358,1.08383,1844.9,1844.7,2.5815]
[1746149781561,1.08383,1844.9,1844.8,1.7337]
[1746149781857,1.08377,1845.0,1844.8,2.81753]
[1746149782058,1.08377,1845.0,1844.9,0.8368]
[1746149782361,1.08377,1845.0,1844.9,7.35029]
[1746149783261,1.08377,1845.0,1844.9,6.2665]
[1746149784555,1.08377,1845.0,1844.9,3.696]
[1746149784749,2.80467,1845.0,1844.9,3.696]
[1746149787163,2.80467,1845.0,1844.9,5.3456]
[1746149787556,1.7209,1845.0,1844.9,6.42939]
[1746149788360,2.80463,1845.0,1844.9,5.3456]
[1746149791665,2.80463,1845.0,1844.9,6.42939]
[1746149792756,1.7209,1845.0,1844.9,6.42939]
[1746149792966,2.80463,1845.0,1844.9,6.42939]
[1746149793166,1.08373,1845.0,1844.9,6.42939]
[1746149794164,3.53862,1845.1,1844.9,6.42939]
[1746149794362,3.53862,1845.1,1845.0,1.6499]
[1746149795069,3.53862,1845.1,1845.0,5.3459]
[1746149795372,11.74642,1845.1,1845.0,0.54672]
[1746149795669,11.74642,1845.1,1844.5,40.8]
[1746149795670,1.08397,1844.6,1844.5,40.8]
[1746149796065,1.08397,1844.6,1844.5,46.1459]
[1746149796260,1.08397,1844.6,1844.5,47.22993]
[1746149796567,3.64496,1844.7,1844.5,47.22991]
[1746149796766,1.08397,1844.6,1844.5,50.43771]
[1746149796967,1.08397,1844.6,1844.5,49.3537]
[1746149797468,2.74147,1844.6,1844.5,49.3537]
[1746149798267,2.74147,1844.6,1844.5,3.696]
[1746149798572,3.53167,1844.6,1844.5,3.696]
[1746149799259,1.08419,1844.3,1844.1,55.1424481]
[1746149799463,2.7417,1844.2,1844.1,55.1424481]
[1746149799664,1.6575,1844.2,1844.1,55.1424481]
[1746149799969,1.6575,1844.2,1844.1,44.294]
[1746149800367,2.7417,1844.2,1844.1,44.294]
[1746149801974,1.6575,1844.2,1844.1,48.58606]
[1746149802273,1.08407,1844.5,1844.2,1.0842]
[1746149802474,2.71097,1844.5,1844.2,2.6905]
[1746149802662,2.71097,1844.5,1844.3,1.6802]
[1746149803174,1.7153,1844.4,1844.3,5.3762]
[1746149803581,1.8742,1844.6,1844.4,1.08406]
[1746149803874,3.5895,1844.6,1844.4,2.76426]
[1746149804076,1.08403,1844.5,1844.4,7.27456]
[1746149804580,1.08403,1844.5,1844.4,6.1905]
[1746149804878,3.5895,1844.6,1844.4,7.27458]
[1746149805074,3.5895,1844.6,1844.5,1.6802]
[1746149806080,3.5895,1844.6,1844.5,5.3762]
[1746149807571,0.8594,1844.7,1844.5,5.3762]
[1746149807776,1.08391,1844.7,1844.6,1.7092]
[1746149808077,1.08397,1844.6,1844.5,6.9038]
[1746149808272,2.72437,1844.6,1844.5,47.7038]
[1746149808779,2.72437,1844.6,1844.5,3.696]
[1746149809775,1.6404,1844.6,1844.5,3.696]
[1746149809977,1.6404,1844.6,1844.5,6.45713]
[1746149810373,2.72437,1844.6,1844.5,5.3731]
[1746149812579,2.72437,1844.6,1844.5,3.696]
[1746149816883,2.72437,1844.6,1844.5,5.3179]
[1746149817085,2.72437,1844.6,1844.5,6.1153]
[1746149817680,2.72437,1844.6,1844.5,3.696]
[1746149818183,1.08393,1844.7,1844.5,7.98781]
[1746149818383,1.08393,1844.7,1844.6,1.6362]
[1746149818585,2.71738,1844.8,1844.6,2.72013]
[1746149818780,1.08388,1844.8,1844.6,5.92793]
[1746149818974,1.08388,1844.8,1844.7,1.6362]
[1746149819183,1.93413,1844.9,1844.7,2.72011]
[1746149819483,1.08383,1844.9,1844.7,2.72011]
[1746149819683,1.08383,1844.9,1844.8,2.4671]
[1746149820086,1.08383,1844.9,1844.8,6.1631]
[1746149821884,1.08383,1844.9,1844.8,7.24695]
[1746149822081,1.08378,1845.0,1844.8,7.24695]
[1746149822388,7.18431968,1845.4,1845.1,1.08367]
[1746149822684,1.08358,1845.3,1845.2,2.552]
[1746149823081,1.08358,1845.3,1845.2,6.248]
[1746149823989,2.77558,1845.3,1845.2,6.248]
[1746149824594,3.63018,1845.3,1845.2,3.696]
[1746149824790,11.83798,1845.3,1845.2,3.696]
[1746149825082,1.08368,1845.1,1845.0,5.932]
[1746149825287,1.08379,1844.9,1844.8,10.8484481]
[1746149825886,2.77579,1844.9,1844.8,10.8484481]
[1746149826080,2.77579,1844.9,1844.8,14.5444481]
[1746149826287,5.98359,1844.9,1844.8,14.5444481]
[1746149826995,9.47859,1844.9,1844.8,14.5444481]
[1746149827192,9.47859,1844.9,1844.8,10.8484481]
[1746149829193,1.08397,1844.6,1844.5,2.5385]
[1746149830082,1.08397,1844.6,1844.5,6.2345]
[1746149830288,2.66727,1844.6,1844.5,6.2345]
[1746149830594,2.66727,1844.6,1844.5,3.696]
[1746149832398,3.53767,1844.6,1844.5,3.696]
[1746149832898,7.03267,1844.6,1844.5,3.696]
[1746149833193,1.0842,1844.2,1844.1,8.91400472]
[1746149833394,1.0842,1844.2,1844.1,7.22560472]
[1746149834993,2.6976,1844.3,1844.1,8.85200472]
[1746149835296,2.69755,1844.3,1844.2,1.6264]
[1746149835796,1.08415,1844.3,1844.2,1.6264]
[1746149836298,1.08415,1844.3,1844.2,5.3224]
[1746149847004,8.3752,1844.6,1844.2,5.3224]
[1746149847204,1.08405,1844.5,1844.4,1.08408]
[1746149847405,1.08405,1844.5,1844.4,1.6276]
[1746149847901,1.08398,1844.6,1844.5,1.08402]
[1746149848209,1.08387,1844.8,1844.5,6.9038]
[1746149848504,1.08387,1844.8,1844.6,2.4754]
[1746149848707,1.08387,1844.8,1844.7,2.4967]
[1746149849006,3.60423421,1844.9,1844.7,5.7045]
[1746149849198,3.60423421,1844.9,1844.8,2.70805]
[1746149849805,3.60423421,1844.9,1844.8,7.70805]
[1746149849999,3.60423421,1844.9,1844.8,48.50805]
[1746149850198,3.60423421,1844.9,1844.8,52.20405]
[1746149850905,1.19814422,1844.9,1844.8,52.20405]
[1746149853099,2.68578,1845.5,1845.2,1.08357]
[1746149853300,2.68578,1845.5,1845.3,6.75106]
[1746149853500,2.68578,1845.5,1845.4,1.6071]
[1746149853999,1.08342,1845.6,1845.4,2.6906]
[1746149854303,1.08342,1845.6,1845.5,1.5842]
[1746149854611,0.8052,1845.8,1845.5,1.5842]
[1746149854808,1.8885,1845.8,1845.6,1.08336]
[1746149855099,3.5632,1845.8,1845.7,1.5842]
[1746149855307,1.08338,1845.6,1845.5,3.696]
[1746149856007,2.75808,1845.6,1845.5,3.696]
[1746149858297,2.75808,1845.6,1845.5,5.431]
[1746149859811,5.40387514,1846.4,1845.6,2.70843]
[1746149860013,1.08309,1846.1,1845.9,1.08318]
[1746149860212,1.08315,1846.0,1845.9,3.696]
[1746149860509,1.08315,1846.0,1845.9,44.496]
[1746149862406,1.08312,1846.1,1845.9,45.57917]
[1746149862608,1.08312,1846.1,1846.0,1.702]
[1746149863412,1.08312,1846.1,1846.0,5.398]
[1746149863808,1.08312,1846.1,1846.0,3.696]
[1746149866612,1.08312,1846.1,1846.0,4.77915]
[1746149866917,2.76047,1846.2,1846.0,6.39065]
[1746149867118,1.08309,1846.1,1846.0,5.3075]
[1746149867417,2.74729,1846.1,1846.0,5.3075]
[1746149867617,2.74729,1846.1,1846.0,44.496]
[1746149868204,1.08334,1845.7,1845.5,7.0484]
[1746149868708,1.08334,1845.7,1845.6,40.8]
[1746149868910,1.08334,1845.7,1845.6,42.4115]
[1746149869112,2.74751,1845.8,1845.6,46.70268]
[1746149869419,2.74751,1845.8,1845.7,1.6115]
[1746149870118,2.74751,1845.8,1845.7,5.3075]
[1746149870618,1.6642,1845.8,1845.7,5.3075]
[1746149870816,2.74747,1845.8,1845.7,5.3075]
[1746149871217,2.74747,1845.8,1845.7,6.39082]
[1746149871418,2.74747,1845.8,1845.7,5.3075]
[1746149872616,2.74747,1845.8,1845.7,6.39082]
[1746149873117,2.74747,1845.8,1845.7,5.3075]
[1746149875821,2.74747,1845.8,1845.7,3.696]
[1746149876924,2.74747,1845.8,1845.7,4.77932]
[1746149877926,2.74747,1845.8,1845.7,3.696]
[1746149879319,1.08342,1845.6,1845.5,40.8]
[1746149880022,3.62452,1845.6,1845.5,40.8]
[1746149880224,3.62452,1845.6,1845.5,44.496]